bitfinex-derivatives/quotes_BTCF0:USTF0_20251119
["timestamp","ask_amount","ask_price","bid_price","bid_amount"]
[1763537404575,0.1545878,91276.0,91275.0,0.04591]
[1763537404880,0.1822675,91276.0,91275.0,0.04591]
[1763537405381,0.04495,91265.0,91264.0,0.40671]
[1763537405581,0.04507601,91265.0,91264.0,0.67087]
[1763537405982,0.02290601,91265.0,91264.0,0.67087]
[1763537406177,0.04507601,91265.0,91264.0,0.40671]
[1763537406480,0.04407601,91265.0,91264.0,0.67087]
[1763537406877,0.00012601,91265.0,91264.0,0.67087]
[1763537407271,0.02290601,91265.0,91264.0,0.67087]
[1763537407679,0.04507601,91265.0,91264.0,0.67087]
[1763537408982,0.04507601,91265.0,91264.0,0.40671]
[1763537409181,0.04507601,91265.0,91264.0,0.67091]
[1763537410379,0.02290601,91265.0,91264.0,0.67091]
[1763537410575,0.04507601,91265.0,91264.0,0.67091]
[1763537411181,0.02290601,91265.0,91264.0,0.67091]
[1763537411575,0.00012601,91265.0,91264.0,0.67091]
[1763537412178,0.00016435,91274.0,91273.0,0.1555514]
[1763537412379,0.00016435,91274.0,91273.0,0.7805514]
[1763537412677,0.04511435,91274.0,91273.0,0.67091]
[1763537415277,0.04511435,91274.0,91273.0,0.40671]
[1763537415478,0.04511435,91274.0,91273.0,0.67095]
[1763537415676,0.00016435,91274.0,91273.0,0.7805914]
[1763537416074,0.04511435,91274.0,91273.0,0.67095]
[1763537416681,0.04511435,91274.0,91273.0,0.40671]
[1763537417680,0.02294435,91274.0,91273.0,0.40671]
[1763537417882,0.04511435,91274.0,91273.0,0.40671]
[1763537418084,0.04511435,91274.0,91273.0,0.5163514]
[1763537418484,0.04511435,91274.0,91273.0,0.40671]
[1763537419773,0.00016435,91274.0,91273.0,0.40671]
[1763537422688,0.40575,91293.0,91292.0,0.04591]
[1763537422875,0.18307665,91293.0,91292.0,0.04591]
[1763537423075,0.04458,91283.0,91282.0,0.04567]
[1763537423882,0.1542094,91283.0,91282.0,0.04567]
[1763537424291,0.18274217,91283.0,91282.0,0.04567]
[1763537425886,0.18374217,91283.0,91282.0,0.04567]
[1763537426191,0.18474217,91283.0,91282.0,0.04567]
[1763537429781,0.18474217,91283.0,91282.0,0.02316]
[1763537429979,0.04448,91274.0,91273.0,0.04294435]
[1763537430183,0.18265297,91274.0,91273.0,0.04294435]
[1763537430379,0.18265297,91274.0,91273.0,0.30718435]
[1763537431490,0.18265297,91274.0,91273.0,0.00016435]
[1763537432092,0.18265297,91274.0,91273.0,0.02127435]
[1763537432694,0.07301277,91274.0,91273.0,0.04294435]
[1763537432899,0.07301277,91274.0,91273.0,0.15258575]
[1763537433192,0.07301277,91274.0,91273.0,0.04294435]
[1763537435997,0.07301277,91274.0,91273.0,0.02127435]
[1763537437394,0.07301277,91274.0,91273.0,0.04294435]
[1763537439005,0.07301277,91274.0,91273.0,0.00016435]
[1763537442413,0.07301277,91274.0,91273.0,0.02127435]
[1763537443598,0.07301277,91274.0,91273.0,0.00016435]
[1763537444908,0.07301277,91274.0,91264.0,0.4704516]
[1763537444909,0.167541,91265.0,91264.0,0.38191]
[1763537445108,0.19607377,91265.0,91264.0,0.4915622]
[1763537445301,0.19607377,91265.0,91264.0,0.5132322]
[1763537445501,0.19607377,91265.0,91264.0,0.40358]
[1763537446910,0.19607377,91265.0,91264.0,0.04278]
[1763537447407,0.19607377,91265.0,91260.0,0.40358]
[1763537447408,0.1541358,91261.0,91260.0,0.40358]
[1763537447608,0.18266857,91261.0,91260.0,0.40358]
[1763537448199,0.18266857,91261.0,91260.0,0.04278]
[1763537448404,0.18266857,91261.0,91248.0,0.37417]
[1763537448405,0.1541488,91251.0,91250.0,0.30702]
[1763537448607,0.18268157,91251.0,91250.0,0.30702]
[1763537448800,0.18268157,91251.0,91250.0,0.04278]
[1763537449012,0.07301277,91251.0,91250.0,0.04278]
[1763537452107,0.07301277,91251.0,91250.0,0.05615]
[1763537452405,0.07301277,91251.0,91250.0,0.04278]
[1763537454609,0.11186703,91250.0,91248.0,0.3608]
[1763537454812,0.04448,91247.0,91242.0,0.1096778]
[1763537455013,0.07301277,91247.0,91246.0,0.02138399]
[1763537455516,0.07301277,91247.0,91246.0,0.04305399]
[1763537460728,0.02853277,91247.0,91246.0,0.04305399]
[1763537461220,0.04637803,91250.0,91249.0,0.04496]
[1763537461426,0.04637803,91250.0,91249.0,0.40576]
[1763537461620,0.05960803,91250.0,91249.0,0.40576]
[1763537461816,0.08747571,91250.0,91249.0,0.40576]
[1763537462526,0.07424571,91250.0,91249.0,0.40576]
[1763537462922,0.18391471,91250.0,91249.0,0.40576]
[1763537464525,0.1538526,91247.0,91246.0,0.00027399]
[1763537464725,0.04418,91247.0,91246.0,0.04523399]
[1763537465027,0.02273,91247.0,91246.0,0.04523399]
[1763537465225,0.00219803,91250.0,91246.0,0.04523399]
[1763537465226,0.02492803,91250.0,91249.0,0.04496]
[1763537465431,0.02492803,91250.0,91249.0,0.40576]
[1763537465631,0.04637803,91250.0,91249.0,0.40576]
[1763537465828,0.00219803,91250.0,91249.0,0.40576]
[1763537467025,0.00016435,91256.0,91249.0,0.64771]
[1763537467226,0.00016435,91256.0,91255.0,0.04496]
[1763537467430,0.00016435,91256.0,91255.0,0.154623]
[1763537468828,0.1538206,91274.0,91273.0,0.04496]
[1763537469030,0.04418,91274.0,91273.0,0.04496]
[1763537469919,0.13223153,91274.0,91273.0,0.04496]
[1763537470124,0.07196334,91274.0,91273.0,0.04496]
[1763537470323,0.07296334,91274.0,91273.0,0.04496]
[1763537470723,0.02778334,91274.0,91273.0,0.04496]
[1763537470926,0.02878334,91274.0,91273.0,0.04496]
[1763537471130,0.00016435,91283.0,91282.0,0.1096306]
[1763537471432,0.00016435,91283.0,91282.0,0.4188706]
[1763537472028,0.0687164,91296.0,91295.0,0.154575]
[1763537472235,0.14297316,91296.0,91295.0,0.04496]
[1763537472527,0.0554864,91296.0,91295.0,0.04496]
[1763537472721,0.02492803,91300.0,91299.0,0.04496]
[1763537472923,0.02492803,91300.0,91299.0,0.30924]
[1763537473318,0.00219803,91300.0,91299.0,0.30924]
[1763537473631,0.37204246,91304.0,91303.0,0.04496]
[1763537473932,0.04434435,91309.0,91308.0,0.04496]
[1763537474134,0.02289435,91309.0,91308.0,0.1545593]
[1763537474426,0.00016435,91309.0,91308.0,0.04496]
[1763537474634,0.04434435,91309.0,91308.0,0.04496]
[1763537476428,0.04634435,91309.0,91308.0,0.04496]
[1763537476634,0.04634435,91309.0,91308.0,0.02233]
[1763537477034,0.04634435,91309.0,91308.0,0.04496]
[1763537478231,0.1323439,91296.0,91290.0,0.00016435]
[1763537478428,0.1323439,91296.0,91295.0,0.04496]
[1763537479228,0.1323439,91296.0,91295.0,0.02233]
[1763537479229,0.04418,91296.0,91295.0,0.02233]
[1763537479428,0.04618,91296.0,91295.0,0.04496]
[1763537480134,0.04518,91296.0,91295.0,0.04496]
[1763537480336,0.04618,91296.0,91295.0,0.04496]
[1763537481229,0.04618,91296.0,91295.0,0.02233]
[1763537482831,0.1555498,91291.0,91290.0,0.00016435]
[1763537483232,0.1555678,91276.0,91275.0,0.40445]
[1763537483430,0.1555678,91276.0,91267.0,0.3608]
[1763537483431,0.1555774,91268.0,91267.0,0.38262]
[1763537483739,0.1555774,91268.0,91267.0,0.3608]
[1763537484231,0.02264,91268.0,91267.0,0.40445]
[1763537484436,0.04593,91268.0,91267.0,0.40445]
[1763537485835,0.002,91268.0,91267.0,0.40445]
[1763537486341,0.04693,91268.0,91267.0,0.40445]
[1763537487839,0.02364,91268.0,91267.0,0.40445]
[1763537488140,0.00219803,91270.0,91269.0,0.04345]
[1763537488445,0.00219803,91270.0,91269.0,0.30773]
[1763537489736,0.00319803,91270.0,91269.0,0.30773]
[1763537490237,0.001,91270.0,91269.0,0.30773]
[1763537490433,0.00016435,91277.0,91276.0,0.1530878]
[1763537490744,0.00016435,91277.0,91276.0,0.7781678]
[1763537492641,0.00016435,91277.0,91276.0,0.66853]
[1763537492944,0.00016435,91277.0,91276.0,0.7781678]
[1763537493541,0.04366435,91277.0,91276.0,0.30777]
[1763537493741,0.00016435,91277.0,91276.0,0.66857]
[1763537496347,0.02124435,91277.0,91276.0,0.66857]
[1763537497145,0.04366435,91277.0,91276.0,0.66857]
[1763537497653,0.1531462,91269.0,91268.0,0.38232]
[1763537497848,0.1531462,91269.0,91268.0,0.3608]
[1763537498034,0.0435,91269.0,91268.0,0.5138974]
[1763537498447,0.1531462,91269.0,91268.0,0.40425]
[1763537499452,0.1531462,91269.0,91268.0,0.3608]
[1763537499940,0.18053653,91269.0,91268.0,0.3608]
[1763537500335,0.18053653,91269.0,91268.0,0.40425]
[1763537500540,0.18053438,91269.0,91268.0,0.40425]
[1763537500840,0.00219803,91270.0,91269.0,0.04345]
[1763537500841,0.11184303,91270.0,91269.0,0.04345]
[1763537501045,0.15534303,91270.0,91269.0,0.04345]
[1763537502849,0.0435,91269.0,91268.0,0.3608]
[1763537503749,0.0435,91269.0,91268.0,0.38232]
[1763537504151,0.0435,91269.0,91268.0,0.40425]
[1763537506251,0.07090241,91269.0,91268.0,0.40425]
[1763537507252,0.07091226,91269.0,91268.0,0.40425]
[1763537507854,0.00219803,91270.0,91269.0,0.1530962]
[1763537508152,0.13925505,91270.0,91269.0,0.04345]
[1763537508354,0.18275505,91270.0,91269.0,0.04345]
[1763537511552,0.0435,91269.0,91268.0,0.3608]
[1763537511758,0.07091202,91269.0,91268.0,0.3608]
[1763537511959,0.07091202,91269.0,91268.0,0.40425]
[1763537515760,0.07091202,91269.0,91268.0,0.5138974]
[1763537516862,0.07091202,91269.0,91268.0,0.40425]
[1763537517659,0.02741202,91269.0,91268.0,0.66853]
[1763537517967,0.04397435,91277.0,91276.0,0.04341]
[1763537518263,0.07143711,91277.0,91276.0,0.04341]
[1763537519361,0.07143711,91277.0,91276.0,0.1530478]
[1763537520561,0.18107371,91277.0,91276.0,0.04341]
[1763537520757,0.07143711,91277.0,91276.0,0.30765]
[1763537521164,0.07128612,91277.0,91276.0,0.30765]
[1763537521364,0.18092272,91277.0,91276.0,0.30765]
[1763537521862,0.15842272,91277.0,91276.0,0.30765]
[1763537522062,0.02747612,91277.0,91276.0,0.30765]
[1763537522560,0.07128612,91277.0,91276.0,0.30765]
[1763537523362,0.07128612,91277.0,91276.0,0.4172878]
[1763537523567,0.02747612,91277.0,91276.0,0.4172878]
[1763537524158,0.02747612,91277.0,91276.0,0.7780878]
[1763537524358,0.00016435,91277.0,91276.0,0.7780878]
[1763537525974,0.02131,91288.0,91287.0,0.1096246]
[1763537526166,0.130931,91290.0,91287.0,0.1096246]
[1763537526364,0.04862732,91289.0,91288.0,0.04341]
[1763537526574,0.07112732,91289.0,91288.0,0.04341]
[1763537528868,0.02731732,91289.0,91288.0,0.04341]
[1763537529067,0.04381,91285.0,91284.0,0.40421]
[1763537529271,0.02731732,91285.0,91284.0,0.7780782]
[1763537529571,0.02731732,91285.0,91284.0,0.7881082]
[1763537530577,0.07112732,91285.0,91284.0,0.66845]
[1763537530777,0.04862732,91285.0,91284.0,0.66845]
[1763537531081,0.07112732,91285.0,91284.0,0.66845]
[1763537531466,0.04862732,91285.0,91284.0,0.66845]
[1763537532066,0.11099128,91293.0,91292.0,0.02119]
[1763537532272,0.07102396,91293.0,91292.0,0.04341]
[1763537533178,0.07202396,91293.0,91292.0,0.04341]
[1763537535183,0.07202396,91293.0,91292.0,0.02119]
[1763537535377,0.04381,91285.0,91284.0,0.04341]
[1763537535570,0.07102396,91285.0,91284.0,0.30761]
[1763537537574,0.12993114,91294.0,91293.0,0.04341]
[1763537537774,0.15713645,91294.0,91293.0,0.04341]
[1763537539074,0.0136,91308.0,91297.0,0.04341]
[1763537539275,0.02736635,91298.0,91297.0,0.04341]
[1763537539475,0.00016435,91298.0,91297.0,0.1530226]
[1763537540076,0.49234439,91312.0,91311.0,0.1530058]
[1763537540382,0.51953311,91312.0,91311.0,0.1530058]
[1763537540584,0.38798872,91312.0,91311.0,0.1530058]
[1763537540875,0.26424,91325.0,91311.0,0.1530058]
[1763537540876,0.00027375,91326.0,91325.0,0.04341]
[1763537541082,0.00027375,91326.0,91325.0,0.40421]
[1763537542279,0.04397425,91335.0,91334.0,0.04341]
[1763537542476,0.04397425,91335.0,91334.0,0.1529782]
[1763537542871,0.02147425,91335.0,91334.0,0.1529782]
[1763537543475,0.04797425,91335.0,91334.0,0.1529782]
[1763537543678,0.04797425,91335.0,91334.0,0.04341]
[1763537543977,0.04346,91317.0,91316.0,0.40438425]
[1763537544278,0.04346,91317.0,91316.0,0.66862425]
[1763537544880,0.00219803,91320.0,91319.0,0.04342]
[1763537545181,0.3608,91328.0,91327.0,0.04342]
[1763537545384,0.04565803,91330.0,91329.0,0.1529942]
[1763537546082,0.04565803,91330.0,91329.0,0.04342]
[1763537546479,0.04765803,91330.0,91329.0,0.04342]
[1763537546885,0.00419803,91330.0,91329.0,0.04342]
[1763537547082,0.003,91330.0,91329.0,0.40422]
[1763537550691,0.002,91330.0,91329.0,0.40422]
[1763537550984,0.003,91330.0,91329.0,0.40422]
[1763537551392,0.001,91330.0,91329.0,0.40422]
[1763537551577,0.04588,91330.0,91329.0,0.66842]
[1763537551781,0.001,91330.0,91329.0,0.66842]
[1763537552291,0.00016425,91335.0,91329.0,0.66842]
[1763537552292,0.00016425,91335.0,91334.0,0.04367]
[1763537552586,0.00016425,91335.0,91334.0,0.1532382]
[1763537553284,0.02342425,91335.0,91334.0,0.1532382]
[1763537553990,0.04504425,91335.0,91334.0,0.1532382]
[1763537554394,0.00016425,91335.0,91334.0,0.1532382]
[1763537557088,0.01336,91352.0,91351.0,0.04367]
[1763537557294,0.05824,91352.0,91351.0,0.04367]
[1763537558397,0.05924,91352.0,91351.0,0.04367]
[1763537558794,0.06024,91352.0,91351.0,0.04367]
[1763537559592,0.04688,91352.0,91351.0,0.04367]
[1763537559986,0.02526,91352.0,91351.0,0.04367]
[1763537560590,0.002,91352.0,91351.0,0.30787]
[1763537562406,0.02526,91352.0,91351.0,0.30787]
[1763537563794,0.04688,91352.0,91351.0,0.30787]
[1763537565394,0.002,91352.0,91351.0,0.30787]
[1763537565802,0.04688,91352.0,91351.0,0.30787]
[1763537565997,0.04688,91352.0,91351.0,0.4174178]
[1763537566400,0.04688,91352.0,91351.0,0.4173378]
[1763537568106,0.07378485,91352.0,91351.0,0.4173378]
[1763537568305,0.07378485,91352.0,91351.0,0.04367]
[1763537568504,0.07378485,91352.0,91351.0,0.30779]
[1763537569104,0.05216485,91352.0,91351.0,0.30779]
[1763537569307,0.07378485,91352.0,91351.0,0.30779]
[1763537570902,0.154435,91345.0,91344.0,0.40447]
[1763537571200,0.18133985,91345.0,91344.0,0.66855]
[1763537571403,0.18133985,91345.0,91344.0,0.40447]
[1763537571601,0.18133985,91345.0,91344.0,0.66859]
[1763537571790,0.07178485,91345.0,91344.0,0.66859]
[1763537571992,0.001,91352.0,91351.0,0.04367]
[1763537572196,0.04488,91359.0,91358.0,0.04367]
[1763537572405,0.04488,91359.0,91358.0,0.1532094]
[1763537573204,0.04488,91359.0,91358.0,0.04367]
[1763537573403,0.1544182,91359.0,91358.0,0.02242]
[1763537574107,0.1544182,91359.0,91358.0,0.04367]
[1763537574306,0.1554182,91359.0,91358.0,0.04367]
[1763537574508,0.04588,91359.0,91358.0,0.1532094]
[1763537575008,0.04688,91359.0,91358.0,0.1532094]
[1763537576503,0.002,91359.0,91358.0,0.1532094]
[1763537577008,0.002,91359.0,91358.0,0.4173294]
[1763537577604,4.25e-06,91361.0,91360.0,0.04382]
[1763537578603,0.4052,91382.0,91381.0,0.1533318]
[1763537578804,0.3608,91382.0,91381.0,0.1533318]
[1763537579011,0.03937483,91386.0,91384.0,0.1533282]
[1763537579211,0.02195,91386.0,91385.0,0.40462]
[1763537579506,0.0444,91386.0,91385.0,0.40462]
[1763537580509,0.002,91386.0,91385.0,0.40462]
[1763537581009,0.00016415,91395.0,91394.0,0.04382]
[1763537581204,0.00016415,91395.0,91394.0,0.66882]
[1763537581404,0.04456415,91395.0,91394.0,0.66882]
[1763537582112,0.00016415,91395.0,91394.0,0.66882]
[1763537582315,0.00016415,91395.0,91394.0,0.3608]
[1763537582316,0.04456415,91395.0,91394.0,0.3608]
[1763537582612,0.04456415,91395.0,91394.0,0.40462]
[1763537583617,0.04656415,91395.0,91394.0,0.40462]
[1763537584508,0.00216415,91395.0,91394.0,0.40462]
[1763537585214,0.00016415,91395.0,91394.0,0.40462]
[1763537586414,4.15e-06,91395.0,91394.0,0.40462]
[1763537587605,4.15e-06,91395.0,91394.0,0.80462]
[1763537587811,0.40017483,91423.0,91422.0,0.04382]
[1763537587812,0.0444,91423.0,91422.0,0.04382]
[1763537588307,0.4052,91430.0,91429.0,0.1532743]
[1763537588506,0.04659803,91430.0,91429.0,0.1532743]
[1763537588816,0.00219803,91430.0,91429.0,0.1532743]
[1763537589208,1.50010867,91439.0,91427.0,0.3608]
[1763537589209,1.50010867,91439.0,91438.0,0.04382]
[1763537589414,0.02205867,91439.0,91438.0,0.04382]
[1763537589815,0.00010867,91439.0,91438.0,0.04382]
[1763537591220,0.00210867,91439.0,91438.0,0.04382]
[1763537592617,0.00010867,91439.0,91438.0,0.04382]
[1763537592813,0.00110867,91439.0,91438.0,0.04382]
[1763537594214,1e-08,91446.0,91445.0,0.1532552]
[1763537594414,1e-08,91446.0,91445.0,0.7782152]
[1763537595714,0.04540001,91446.0,91445.0,0.66878]
[1763537596509,0.00100001,91446.0,91445.0,0.66878]
[1763537597312,1e-08,91446.0,91445.0,0.66878]
[1763537597511,1e-08,91446.0,91445.0,1.06878]
[1763537597711,1e-08,91446.0,91445.0,0.66878]
[1763537598019,1e-08,91446.0,91445.0,0.40462]
[1763537598414,0.04440001,91446.0,91445.0,0.40462]
[1763537598611,0.04440001,91446.0,91445.0,0.66874]
[1763537598811,0.02195001,91446.0,91445.0,0.66874]
[1763537599411,0.04440001,91446.0,91445.0,0.40462]
[1763537599717,0.04440001,91446.0,91445.0,0.3608]
[1763537600917,1e-08,91446.0,91445.0,0.3608]
[1763537602114,0.05803,91476.0,91475.0,0.1532193]
[1763537602328,0.05803,91476.0,91475.0,0.40462]
[1763537603225,0.1674281,91476.0,91475.0,0.3608]
[1763537603624,0.1653189,91467.0,91466.0,0.00016405]
[1763537605019,0.05591,91467.0,91466.0,0.00016405]
[1763537605222,0.05591,91467.0,91466.0,0.04325405]
[1763537605422,0.02182,91467.0,91466.0,0.04325405]
[1763537605729,0.00219803,91470.0,91469.0,0.04309]
[1763537605929,0.04506803,91470.0,91469.0,0.04309]
[1763537608031,0.42013,91485.0,91484.0,0.04428]
[1763537608225,0.44625516,91485.0,91484.0,0.04428]
[1763537608932,0.44625516,91485.0,91484.0,0.02152]
[1763537609333,0.0457,91481.0,91480.0,0.1536731]
[1763537609527,0.00219803,91480.0,91476.0,0.1536781]
[1763537609833,0.0457,91477.0,91476.0,0.1536781]
[1763537610729,0.0457,91477.0,91476.0,0.04428]
[1763537611626,0.1550969,91477.0,91476.0,0.04428]
[1763537611825,0.0457,91477.0,91476.0,0.04428]
[1763537612628,0.0457,91477.0,91467.0,0.4702087]
[1763537612629,0.1551077,91468.0,91467.0,0.3608]
[1763537612830,0.0457,91468.0,91467.0,0.3608]
[1763537613030,0.0457,91468.0,91467.0,0.40508]
[1763537613530,0.00219803,91470.0,91467.0,0.40508]
[1763537613531,0.00219803,91470.0,91469.0,0.04428]
[1763537613835,0.02504803,91470.0,91469.0,0.04428]
[1763537614038,0.04789803,91470.0,91469.0,0.04428]
[1763537615034,0.4065,91477.0,91476.0,0.1536781]
[1763537615340,0.07189749,91477.0,91476.0,0.1536781]
[1763537616443,0.07189749,91477.0,91476.0,0.04428]
[1763537618232,0.0457,91476.0,91475.0,0.3608]
[1763537618441,0.07189749,91476.0,91475.0,0.40508]
[1763537618627,0.07189749,91476.0,91475.0,0.38232]
[1763537618824,0.07189749,91476.0,91475.0,0.40508]
[1763537619937,0.02619749,91476.0,91475.0,0.40508]
[1763537620136,0.01556803,91480.0,91475.0,0.40508]
[1763537620137,0.02504803,91480.0,91479.0,0.04428]
[1763537620339,0.04789803,91480.0,91479.0,0.04428]
[1763537620540,0.07417322,91480.0,91479.0,0.04428]
[1763537620739,0.08754322,91480.0,91479.0,0.04428]
[1763537621944,0.0457,91476.0,91475.0,0.38232]
[1763537622134,0.07197519,91476.0,91475.0,0.40508]
[1763537623036,0.07197519,91476.0,91475.0,0.3608]
[1763537623237,0.07197519,91476.0,91475.0,0.40508]
[1763537623538,0.07197519,91476.0,91475.0,0.38232]
[1763537623840,0.07197519,91476.0,91475.0,0.3608]
[1763537624927,0.07197519,91476.0,91475.0,0.5144793]
[1763537625934,0.02627519,91476.0,91475.0,0.5144793]
[1763537626229,0.00219803,91480.0,91479.0,0.04428]
[1763537626931,0.00027327,91486.0,91485.0,0.1536673]
[1763537627126,0.02653024,91486.0,91485.0,0.4177473]
[1763537627544,2.4e-07,91486.0,91485.0,0.4177473]
[1763537627738,0.03937483,91502.0,91500.0,0.01896]
[1763537627945,0.02285,91506.0,91505.0,0.01896]
[1763537628334,0.0457,91506.0,91505.0,0.01896]
[1763537629335,0.00718586,91510.0,91509.0,0.01896]
[1763537629536,0.03937483,91516.0,91515.0,0.00898]
[1763537629738,0.0457,91518.0,91517.0,0.00449]
[1763537630044,0.0457,91516.0,91515.0,0.26861]
[1763537630242,0.02504803,91520.0,91519.0,0.00898]
[1763537630441,0.04789803,91520.0,91519.0,0.00898]
[1763537630836,0.15724353,91520.0,91519.0,0.00898]
[1763537631140,0.0457,91516.0,91515.0,0.26412]
[1763537631344,0.0457,91516.0,91515.0,0.2731]
[1763537631734,0.02285,91516.0,91515.0,0.2731]
[1763537631934,0.0457,91516.0,91515.0,0.2731]
[1763537632130,0.00027315,91526.0,91525.0,0.00898]
[1763537632339,0.00027315,91526.0,91525.0,0.27306]
[1763537633043,0.38365,91544.0,91543.0,0.00844]
[1763537633241,0.4065,91544.0,91543.0,0.27256]
[1763537633441,0.0457,91538.0,91537.0,0.36502]
[1763537633641,0.0457,91538.0,91537.0,0.63336]
[1763537634039,0.0457,91538.0,91537.0,0.26834]
[1763537634241,0.0457,91535.0,91534.0,0.00016386]
[1763537634448,0.4065,91535.0,91534.0,0.00016386]
[1763537634744,0.4065,91535.0,91534.0,0.00438386]
[1763537634946,0.3608,91535.0,91534.0,0.00860386]
[1763537635139,0.01337,91540.0,91539.0,0.00844]
[1763537635140,0.03622,91540.0,91539.0,0.00844]
[1763537635339,0.06126803,91540.0,91539.0,0.00844]
[1763537636540,0.0457,91535.0,91534.0,0.00016386]
[1763537636741,0.4065,91535.0,91534.0,0.00016386]
[1763537638648,0.4065,91535.0,91534.0,0.00438386]
[1763537638942,0.03471,91540.0,91539.0,0.00844]
[1763537639149,0.05831803,91540.0,91539.0,0.00844]
[1763537639340,0.05831803,91540.0,91539.0,0.1177628]
[1763537639732,0.00219803,91540.0,91539.0,0.1177628]
[1763537639938,0.3608,91544.0,91543.0,0.117758]
[1763537640141,0.03471,91548.0,91547.0,0.1177532]
[1763537640344,0.05612,91548.0,91547.0,0.00844]
[1763537640943,0.05612,91548.0,91547.0,0.00422]
[1763537641145,0.04275,91537.0,91536.0,0.26416]
[1763537641346,0.01312,91540.0,91539.0,0.00844]
[1763537641347,0.05806803,91540.0,91539.0,0.00844]
[1763537641544,0.04275,91537.0,91536.0,0.3608]
[1763537642545,0.01531803,91540.0,91539.0,0.00844]
[1763537642849,0.01312,91540.0,91539.0,0.00844]
[1763537643542,0.01531803,91540.0,91539.0,0.00844]
[1763537643936,0.01337,91548.0,91547.0,0.1177532]
[1763537644242,0.03471,91548.0,91547.0,0.1177532]
[1763537644548,0.05612,91548.0,91547.0,0.00844]
[1763537644847,0.04275,91547.0,91546.0,0.2642]
[1763537647549,0.1520752,91537.0,91536.0,0.3608]
[1763537647756,0.04275,91537.0,91536.0,0.7343264]
[1763537648751,0.04275,91537.0,91536.0,0.7427664]
[1763537649652,0.04275,91537.0,91536.0,0.63344]
[1763537652352,0.01312,91521.0,91520.0,0.28646]
[1763537652551,0.05587,91521.0,91520.0,0.28646]
[1763537652944,0.05587,91521.0,91520.0,0.26412]
[1763537653554,0.04275,91518.0,91517.0,0.3608]
[1763537653749,0.04275,91512.0,91511.0,0.26428386]
[1763537654253,0.04275,91512.0,91511.0,0.28662386]
[1763537654744,0.01312,91521.0,91520.0,0.01117]
[1763537654950,0.38214,91526.0,91525.0,0.1316795]
[1763537655144,0.05587,91520.0,91519.0,0.27529]
[1763537655357,0.04275,91512.0,91511.0,0.01133386]
[1763537655848,0.04275,91512.0,91511.0,0.02250386]
[1763537656043,0.1521051,91512.0,91511.0,0.02250386]
[1763537656855,0.1521051,91512.0,91511.0,0.00016386]
[1763537657047,0.1521051,91512.0,91511.0,0.00116386]
[1763537657253,0.17784366,91512.0,91511.0,0.00116386]
[1763537657446,0.17784366,91512.0,91511.0,0.00016386]
[1763537661660,0.19096366,91512.0,91511.0,0.00016386]
[1763537663453,0.19182366,91512.0,91511.0,0.02250386]
[1763537663658,0.19182366,91512.0,91511.0,0.00016386]
[1763537663957,0.19182366,91512.0,91497.0,0.00013164]
[1763537663958,0.1523318,91498.0,91497.0,0.00013164]
[1763537664662,0.04296,91498.0,91497.0,0.02247164]
[1763537665052,0.00219803,91500.0,91499.0,0.02234]
[1763537665560,0.00219803,91500.0,91499.0,0.38314]
[1763537665946,0.01389,91503.0,91502.0,0.02234]
[1763537666152,0.02162386,91507.0,91506.0,0.02234]
[1763537667264,0.04312386,91507.0,91506.0,0.02234]
[1763537668057,0.00016386,91507.0,91506.0,0.02234]
[1763537668257,0.04593386,91507.0,91506.0,0.02234]
[1763537668554,0.00016386,91507.0,91506.0,0.02234]
[1763537669255,0.01312,91520.0,91519.0,0.022]
[1763537669465,0.01531803,91520.0,91519.0,0.022]
[1763537669863,0.06108803,91520.0,91519.0,0.022]
[1763537670253,0.04577,91518.0,91517.0,0.3608]
[1763537670455,0.04577,91518.0,91517.0,0.3828]
[1763537670653,0.01531803,91520.0,91519.0,0.022]
[1763537670654,0.00219803,91520.0,91519.0,0.022]
[1763537671960,0.40673289,91529.0,91528.0,0.1313359]
[1763537672148,0.04593289,91529.0,91528.0,0.1313359]
[1763537672348,0.00016289,91529.0,91528.0,0.1313359]
[1763537675056,0.05170162,91536.0,91535.0,0.1313276]
[1763537675260,0.0321223,91536.0,91535.0,0.7563276]
[1763537675851,2.3e-06,91536.0,91535.0,0.7563276]
[1763537677458,2.3e-06,91536.0,91535.0,1.1563276]
[1763537679462,2.3e-06,91536.0,91535.0,0.7562876]
[1763537681468,2.3e-06,91536.0,91535.0,0.7562476]
[1763537682870,0.0228723,91536.0,91535.0,0.7562476]
[1763537683470,2.3e-06,91536.0,91535.0,0.7342476]
[1763537686970,0.0457723,91536.0,91535.0,0.4701276]
[1763537687267,0.0457723,91536.0,91535.0,0.3608]
[1763537688358,0.4457723,91536.0,91535.0,0.3608]
[1763537688568,0.04577,91528.0,91527.0,0.26408]
[1763537689172,0.04577,91528.0,91527.0,0.28708]
[1763537689874,0.01619803,91530.0,91527.0,0.28708]
[1763537689875,0.00219803,91530.0,91529.0,0.04435]
[1763537691274,2.3e-06,91536.0,91535.0,0.1093276]
[1763537691473,2.3e-06,91536.0,91535.0,0.4701276]
[1763537693166,0.3608,91572.0,91565.0,0.1536418]
[1763537693362,0.3608,91572.0,91565.0,0.4178418]
[1763537694167,0.04604303,91566.0,91565.0,0.30855]
[1763537694369,0.04604303,91566.0,91560.0,0.0021977]
[1763537694370,0.04577,91561.0,91560.0,0.0021977]
[1763537694565,0.04577,91561.0,91560.0,0.2664377]
[1763537694766,0.04577,91561.0,91560.0,0.0021977]
[1763537695066,0.04577,91561.0,91560.0,0.2664377]
[1763537698071,0.04577,91561.0,91560.0,0.3100177]
[1763537698772,0.04501303,91566.0,91565.0,0.1528718]
[1763537698977,0.00027303,91566.0,91565.0,0.1528718]
[1763537699172,0.00027303,91566.0,91565.0,0.04358]
[1763537699375,0.04474,91561.0,91560.0,0.0021977]
[1763537699676,0.04474,91561.0,91560.0,0.2664377]
[1763537700295,0.02328,91561.0,91560.0,0.3100177]
[1763537700483,0.04501303,91566.0,91565.0,0.1528718]
[1763537700874,0.02355303,91566.0,91565.0,0.1528718]
[1763537702377,0.02355303,91566.0,91565.0,0.1538718]
[1763537702577,0.04501303,91566.0,91565.0,0.1538718]
[1763537702775,0.04501303,91566.0,91565.0,0.001]
[1763537702984,0.04474,91561.0,91560.0,0.0021977]
[1763537703283,0.04474,91561.0,91560.0,0.2887977]
[1763537703874,0.04474,91561.0,91560.0,0.3099377]
[1763537704075,0.04474,91561.0,91560.0,0.2887977]